[Event "EWIBCC 2019"]
[Site "Monte-Carlo"]
[Date "2019.11.29"]
[Round "2.14"]
[White "Savina, Anastasia"]
[Black "Socko, Monika"]
[Result "0-1"]
[ECO "E49"]
[WhiteElo "2354"]
[BlackElo "2417"]
[Annotator "ChessBase"]
[PlyCount "136"]
[EventDate "2019.11.29"]
[EventType "swiss"]
[EventCountry "MNC"]
[SourceTitle "playchess.com"]
[Source "ChessBase"]
[SourceQuality "1"]
[TimeControl "180+2"]

1. d4 {[%emt 0:00:00]} Nf6 {[%emt 0:00:00]} 2. c4 {[%emt 0:00:02]} e6 {[%emt 0:00:01]} 3. Nc3 {[%emt 0:00:08]} Bb4 {[%emt 0:00:01]} 4. a3 {[%emt 0:00:03]} Bxc3+ {[%emt 0:00:02]} 5. bxc3 {[%emt 0:00:01]} O-O {[%emt 0:00:03]} 6. f3 {[%emt 0:00:05]} d5 {[%emt 0:00:09]} 7. e3 {[%emt 0:00:14]} b6 {[%emt 0:00:03]} 8. cxd5 {[%emt 0:00:16]} exd5 {[%emt 0:00:03]} 9. Bd3 {[%emt 0:00:03]} Ba6 {[%emt 0:00:03]} 10. Ne2 {[%emt 0:00:12]} c5 {[%emt 0:00:18]} 11. Bxa6 {[%emt 0:00:10]} Nxa6 {[%emt 0:00:01]} 12. O-O {[%emt 0:00:04]} Re8 {[%emt 0:00:10]} 13. Ng3 {[%emt 0:00:12]} Nc7 {[%emt 0:00:02]} 14. a4 {[%emt 0:00:04]} Rc8 {[%emt 0:00:15]} 15. Qd3 {[%emt 0:00:09]} Qd7 {[%emt 0:00:11]} 16. Bd2 {[%emt 0:00:18]} Ne6 {[%emt 0:00:09]} 17. Rfb1 {[%emt 0:00:24]} cxd4 {[%emt 0:00:12]} 18. cxd4 {[%emt 0:00:02]} Rc4 {[%emt 0:00:01]} 19. a5 {[%emt 0:00:05]} b5 {[%emt 0:00:03]} 20. a6 {[%emt 0:00:07]} Rb8 {[%emt 0:00:17]} 21. Bb4 {[%emt 0:00:07]} Rb6 {[%emt 0:00:17]} 22. Nf1 {[%emt 0:00:35]} Qc8 {[%emt 0:00:14]} 23. Nd2 {[%emt 0:00:05]} Rcc6 {[%emt 0:00:01]} 24. Nb3 {[%emt 0:00:05]} Rxa6 {[%emt 0:01:12]} 25. Rxa6 {[%emt 0:00:12]} Qxa6 {[%emt 0:00:00]} 26. Ra1 {[%emt 0:00:02]} Qb6 {[%emt 0:00:00]} 27. Bc5 {[%emt 0:00:06]} Nxc5 {[%emt 0:00:00]} 28. Nxc5 {[%emt 0:00:01]} a5 {[%emt 0:00:00]} 29. Qf5 {[%emt 0:00:01]} a4 {[%emt 0:00:00]} 30. g4 {[%emt 0:00:01]} h6 {[%emt 0:00:00]} 31. h4 {[%emt 0:00:01]} Qa5 {[%emt 0:00:00]} 32. g5 {[%emt 0:00:03]} Qc3 {[%emt 0:00:00]} 33. Rb1 {[%emt 0:00:03]} Qxe3+ {[%emt 0:00:00]} 34. Kg2 {[%emt 0:00:02]} Qxd4 {[%emt 0:00:00]} 35. Rxb5 {[%emt 0:00:03]} g6 {[%emt 0:00:04]} 36. Rb8+ {[%emt 0:00:02]} Kh7 {[%emt 0:00:04]} 37. Qd3 {[%emt 0:00:03]} Qxc5 {[%emt 0:00:10]} 38. gxf6 {[%emt 0:00:01]} Qc2+ {[%emt 0:00:03]} 39. Qxc2 {[%emt 0:00:01]} Rxc2+ {[%emt 0:00:01]} 40. Kg3 {[%emt 0:00:01]} Rc6 {[%emt 0:00:01]} 41. Ra8 {[%emt 0:00:01]} Rxf6 {[%emt 0:00:01]} 42. Rxa4 {[%emt 0:00:01]} Rd6 {[%emt 0:00:01]} 43. Rd4 {[%emt 0:00:02]} Kg7 {[%emt 0:00:03]} 44. Kf4 {[%emt 0:00:02]} Kf6 {[%emt 0:00:01]} 45. Ke3 {[%emt 0:00:03]} Ke6 {[%emt 0:00:01]} 46. Ra4 {[%emt 0:00:03]} f5 {[%emt 0:00:02]} 47. Kd4 {[%emt 0:00:03]} Rc6 {[%emt 0:00:02]} 48. Ra8 {[%emt 0:00:01]} Rc4+ {[%emt 0:00:01]} 49. Ke3 {[%emt 0:00:01]} Rxh4 {[%emt 0:00:01]} 50. Ra6+ {[%emt 0:00:01]} Kf7 {[%emt 0:00:01]} 51. Ra7+ {[%emt 0:00:01]} Kf6 {[%emt 0:00:00]} 52. Ra6+ {[%emt 0:00:03]} Kg5 {[%emt 0:00:01]} 53. Rd6 {[%emt 0:00:04]} d4+ {[%emt 0:00:01]} 54. Kf2 {[%emt 0:00:02]} Rh2+ {[%emt 0:00:03]} 55. Kg3 {[%emt 0:00:01]} Rd2 {[%emt 0:00:01]} 56. f4+ {[%emt 0:00:04]} Kh5 {[%emt 0:00:00]} 57. Kf3 {[%emt 0:00:03]} g5 {[%emt 0:00:03]} 58. Rd5 {[%emt 0:00:02]} g4+ {[%emt 0:00:13]} 59. Kg3 {[%emt 0:00:00]} Rd3+ {[%emt 0:00:01]} 60. Kg2 {[%emt 0:00:02]} Kh4 {[%emt 0:00:03]} 61. Rxf5 {[%emt 0:00:03]} Rd2+ {[%emt 0:00:01]} 62. Kf1 {[%emt 0:00:02]} Kg3 {[%emt 0:00:02]} 63. Rh5 {[%emt 0:00:03]} Kxf4 {[%emt 0:00:04]} 64. Rxh6 {[%emt 0:00:02]} Kg3 {[%emt 0:00:02]} 65. Rg6 {[%emt 0:00:02]} Rf2+ {[%emt 0:00:01]} 66. Kg1 {[%emt 0:00:01]} Rc2 {[%emt 0:00:01]} 67. Kf1 {[%emt 0:00:01]} d3 {[%emt 0:00:01]} 68. Rd6 {[%emt 0:00:03]} Rc1# {[%emt 0:00:13]} 0-1

[Event "EWIBCC 2019"]
[Site "Monte-Carlo"]
[Date "2019.11.29"]
[Round "2.16"]
[White "Berzina, Ilze"]
[Black "Daulyte-Cornette, Deimante"]
[Result "0-1"]
[ECO "B03"]
[WhiteElo "2211"]
[BlackElo "2405"]
[Annotator "ChessBase"]
[PlyCount "88"]
[EventDate "2019.11.29"]
[EventType "swiss"]
[EventCountry "MNC"]
[SourceTitle "playchess.com"]
[Source "ChessBase"]
[SourceQuality "1"]
[TimeControl "180+2"]

1. e4 {[%emt 0:00:00]} Nf6 {[%emt 0:00:00]} 2. e5 {[%emt 0:00:01]} Nd5 {[%emt 0:00:01]} 3. d4 {[%emt 0:00:01]} d6 {[%emt 0:00:01]} 4. c4 {[%emt 0:00:01]} Nb6 {[%emt 0:00:01]} 5. exd6 {[%emt 0:00:01]} cxd6 {[%emt 0:00:01]} 6. Nc3 {[%emt 0:00:03]} g6 {[%emt 0:00:01]} 7. Be3 {[%emt 0:00:01]} Bg7 {[%emt 0:00:02]} 8. Rc1 {[%emt 0:00:01]} O-O {[%emt 0:00:03]} 9. Be2 {[%emt 0:00:03]} d5 {[%emt 0:00:21]} 10. c5 {[%emt 0:00:18]} Nc4 {[%emt 0:00:04]} 11. Bxc4 {[%emt 0:00:28]} dxc4 {[%emt 0:00:02]} 12. Nf3 {[%emt 0:00:28]} Nc6 {[%emt 0:00:20]} 13. O-O {[%emt 0:00:17]} Bg4 {[%emt 0:00:03]} 14. h3 {[%emt 0:00:19]} Bxf3 {[%emt 0:00:03]} 15. Qxf3 {[%emt 0:00:01]} Nxd4 {[%emt 0:00:52]} 16. Bxd4 {[%emt 0:00:03]} Qxd4 {[%emt 0:00:04]} 17. Qxb7 {[%emt 0:00:12]} Qxc5 {[%emt 0:00:04]} 18. Ne4 {[%emt 0:00:11]} Qd4 {[%emt 0:00:15]} 19. Rfd1 {[%emt 0:00:07]} Qxb2 {[%emt 0:00:03]} 20. Qxe7 {[%emt 0:00:29]} Rae8 {[%emt 0:00:24]} 21. Qh4 {[%emt 0:00:03]} Qxa2 {[%emt 0:00:17]} 22. Rxc4 {[%emt 0:00:12]} Qe2 {[%emt 0:00:17]} 23. Rdc1 {[%emt 0:00:03]} a5 {[%emt 0:00:09]} 24. Nf6+ {[%emt 0:00:04]} Bxf6 {[%emt 0:00:02]} 25. Qxf6 {[%emt 0:00:01]} Re6 {[%emt 0:00:06]} 26. Qg5 {[%emt 0:00:03]} Rfe8 {[%emt 0:00:02]} 27. Qxa5 {[%emt 0:00:04]} Rf6 {[%emt 0:00:01]} 28. Qc5 {[%emt 0:00:04]} Re5 {[%emt 0:00:03]} 29. Qd4 {[%emt 0:00:05]} Ref5 {[%emt 0:00:06]} 30. Rc8+ {[%emt 0:00:03]} Kg7 {[%emt 0:00:01]} 31. f3 {[%emt 0:00:03]} Rg5 {[%emt 0:00:05]} 32. Qf2 {[%emt 0:00:05]} Qe6 {[%emt 0:00:03]} 33. Rd8 {[%emt 0:00:04]} Qxh3 {[%emt 0:00:02]} 34. Rcc8 {[%emt 0:00:02]} Qh5 {[%emt 0:00:05]} 35. Rg8+ {[%emt 0:00:05]} Kh6 {[%emt 0:00:00]} 36. g4 {[%emt 0:00:03]} Qh3 {[%emt 0:00:05]} 37. Qg2 {[%emt 0:00:02]} Qxg2+ {[%emt 0:00:02]} 38. Kxg2 {[%emt 0:00:01]} Rd5 {[%emt 0:00:01]} 39. Kg3 {[%emt 0:00:01]} Rd3 {[%emt 0:00:01]} 40. Kh4 {[%emt 0:00:02]} g5+ {[%emt 0:00:03]} 41. Rxg5 {[%emt 0:00:02]} Rfxf3 {[%emt 0:00:03]} 42. Rh5+ {[%emt 0:00:01]} Kg7 {[%emt 0:00:01]} 43. Rg5+ {[%emt 0:00:02]} Kf6 {[%emt 0:00:01]} 44. Rgc5 {[%emt 0:00:01]} Rh3# {[%emt 0:00:01]} 0-1

[Event "EWIBCC 2019"]
[Site "Monte-Carlo"]
[Date "2019.11.29"]
[Round "2.17"]
[White "Berend, Elvira"]
[Black "Gaprindashvili, Nona"]
[Result "1-0"]
[ECO "A44"]
[WhiteElo "2349"]
[BlackElo "2275"]
[Annotator "NA"]
[PlyCount "77"]
[EventDate "2019.11.29"]
[EventType "swiss"]
[EventCountry "MNC"]
[SourceTitle "playchess.com"]
[Source "ChessBase"]
[SourceQuality "1"]
[TimeControl "180+2"]

1. d4 {[%emt 0:03:02]} c5 {[%emt 0:00:00]} 2. d5 {[%emt 0:00:00]} e5 {[%emt 0:00:00]} 3. c4 {[%emt 0:00:00]} d6 {[%emt 0:00:01]} 4. e4 {[%emt 0:00:06]} g6 {[%emt 0:00:02]} 5. Nc3 {[%emt 0:00:02]} Nh6 {[%emt 0:00:02]} 6. Bd3 {[%emt 0:00:00]} Bg7 7. Nge2 {[%emt 0:00:04]} f5 {[%emt 0:03:09]} 8. f4 {[%emt 0:00:00]} Qh4+ {[%emt 0:00:00]} 9. g3 {[%emt 0:00:00]} Qh5 {[%emt 0:00:00]} 10. fxe5 {[%emt 0:00:00]} dxe5 {[%emt 0:00:00]} 11. Nb5 {[%emt 0:00:00]} Kd8 {[%emt 0:00:00]} 12. Nd6 {[%emt 0:00:00]} Rf8 {[%emt 0:00:00]} 13. Be3 {[%emt 0:00:00]} Bd7 {[%emt 0:00:00]} 14. Nxb7+ {[%emt 0:00:00]} Kc7 {[%emt 0:00:00]} 15. Nxc5 {[%emt 0:00:00]} Ng4 {[%emt 0:00:00]} 16. Bg1 {[%emt 0:00:00]} f4 {[%emt 0:00:00]} 17. Qb3 {[%emt 0:00:00]} Bc8 {[%emt 0:00:00]} 18. d6+ {[%emt 0:00:00]} Kd8 {[%emt 0:00:00]} 19. Nb7+ {[%emt 0:00:00]} Ke8 {[%emt 0:00:00]} 20. O-O-O {[%emt 0:00:00]} f3 {[%emt 0:00:00]} 21. Nc5 {[%emt 0:00:01]} Nd7 {[%emt 0:00:00]} 22. Ne6 {[%emt 0:00:06]} f2 {[%emt 0:00:00]} 23. Nxg7+ {[%emt 0:00:02]} Kd8 {[%emt 0:00:00]} 24. Nxh5 {[%emt 0:00:01]} gxh5 {[%emt 0:00:00]} 25. Nc3 {[%emt 0:00:06]} Rb8 {[%emt 0:00:00]} 26. Qa3 {[%emt 0:00:01]} fxg1=Q 27. Rhxg1 {[%emt 0:00:01]} Nf2 {[%emt 0:00:00]} 28. Qa5+ {[%emt 0:00:01]} Ke8 {[%emt 0:00:00]} 29. Nd5 {[%emt 0:00:02]} Nxd1 {[%emt 0:00:00]} 30. Nc7+ {[%emt 0:00:00]} Kf7 {[%emt 0:00:00]} 31. Qd5+ {[%emt 0:00:01]} Kg7 {[%emt 0:00:00]} 32. Rxd1 {[%emt 0:00:01]} Rf2 {[%emt 0:00:00]} 33. Ne6+ {[%emt 0:00:02]} Kh6 {[%emt 0:00:00]} 34. b3 {[%emt 0:00:02]} Nf6 {[%emt 0:00:00]} 35. Qxe5 {[%emt 0:00:01]} Bxe6 {[%emt 0:00:07]} 36. Qxe6 {[%emt 0:00:00]} Rxa2 {[%emt 0:00:06]} 37. Bc2 {[%emt 0:00:02]} Ra1+ {[%emt 0:00:02]} 38. Kb2 {[%emt 0:00:00]} Rxd1 {[%emt 0:00:02]} 39. Qxf6# {[%emt 0:00:01]} 1-0

[Event "EWIBCC 2019"]
[Site "Monte-Carlo"]
[Date "2019.11.29"]
[Round "2.18"]
[White "Zvereva, Marija"]
[Black "Benmesbah, Natacha"]
[Result "0-1"]
[ECO "B30"]
[WhiteElo "2154"]
[BlackElo "2265"]
[Annotator "ChessBase"]
[PlyCount "85"]
[EventDate "2019.11.29"]
[EventType "swiss"]
[EventCountry "MNC"]
[SourceTitle "playchess.com"]
[Source "ChessBase"]
[SourceQuality "1"]
[TimeControl "180+2"]

1. e4 {[%emt 0:00:00]} c5 {[%emt 0:00:00]} 2. Nf3 {[%emt 0:00:01]} Nc6 {[%emt 0:00:00]} 3. Bb5 {[%emt 0:00:02]} g6 {[%emt 0:00:01]} 4. Nc3 {[%emt 0:00:02]} Bg7 {[%emt 0:00:02]} 5. d3 {[%emt 0:00:01]} Nf6 {[%emt 0:00:04]} 6. Be3 {[%emt 0:00:03]} d6 {[%emt 0:00:05]} 7. h3 {[%emt 0:00:05]} Bd7 {[%emt 0:00:04]} 8. Qd2 {[%emt 0:00:04]} O-O {[%emt 0:00:23]} 9. a4 {[%emt 0:00:27]} e6 {[%emt 0:00:42]} 10. Bh6 {[%emt 0:00:06]} d5 {[%emt 0:00:07]} 11. e5 {[%emt 0:00:10]} Ne8 {[%emt 0:00:01]} 12. Bg5 {[%emt 0:00:23]} Qc7 {[%emt 0:00:04]} 13. Bxc6 {[%emt 0:00:03]} Bxc6 {[%emt 0:00:02]} 14. d4 {[%emt 0:00:39]} cxd4 {[%emt 0:00:21]} 15. Qxd4 {[%emt 0:00:02]} f6 {[%emt 0:00:03]} 16. exf6 {[%emt 0:00:13]} Nxf6 {[%emt 0:00:01]} 17. Qe3 {[%emt 0:00:16]} Rae8 {[%emt 0:00:04]} 18. Ne5 {[%emt 0:00:06]} Ne4 {[%emt 0:00:04]} 19. Nxc6 {[%emt 0:00:03]} Bxc3+ {[%emt 0:01:00]} 20. bxc3 {[%emt 0:00:07]} Qxc6 {[%emt 0:00:01]} 21. O-O {[%emt 0:00:04]} Qxc3 {[%emt 0:00:02]} 22. Qxc3 {[%emt 0:00:05]} Nxc3 {[%emt 0:00:02]} 23. Ra3 {[%emt 0:00:02]} Ne4 {[%emt 0:00:02]} 24. Be3 {[%emt 0:00:02]} b6 {[%emt 0:00:00]} 25. a5 {[%emt 0:00:44]} bxa5 {[%emt 0:00:02]} 26. Rxa5 {[%emt 0:00:00]} Rf7 {[%emt 0:00:00]} 27. Rxa7 {[%emt 0:00:00]} Rxa7 {[%emt 0:00:01]} 28. Bxa7 {[%emt 0:00:00]} Rc8 {[%emt 0:00:00]} 29. Rc1 {[%emt 0:00:00]} Rc4 {[%emt 0:00:02]} 30. f3 {[%emt 0:00:00]} Nc3 {[%emt 0:00:04]} 31. Kf1 {[%emt 0:00:00]} Nb5 {[%emt 0:00:01]} 32. Bb6 {[%emt 0:00:00]} Na3 {[%emt 0:00:02]} 33. c3 {[%emt 0:00:00]} Nb5 {[%emt 0:00:02]} 34. Ba5 {[%emt 0:00:00]} d4 {[%emt 0:00:02]} 35. Rb1 {[%emt 0:00:00]} Nxc3 {[%emt 0:00:01]} 36. Rb8+ {[%emt 0:00:02]} Kg7 {[%emt 0:00:02]} 37. Ke1 {[%emt 0:00:01]} Nd5 {[%emt 0:00:01]} 38. Kd2 {[%emt 0:00:03]} Ra4 {[%emt 0:00:01]} 39. Bd8 {[%emt 0:00:06]} Ra2+ {[%emt 0:00:01]} 40. Kd3 {[%emt 0:00:01]} e5 {[%emt 0:00:08]} 41. Rb7+ {[%emt 0:00:02]} Kh6 {[%emt 0:00:02]} 42. h4 {[%emt 0:00:04]} Nf4+ {[%emt 0:00:02]} 43. Ke4 0-1

[Event "EWIBCC 2019"]
[Site "Monte-Carlo"]
[Date "2019.11.29"]
[Round "2.19"]
[White "Mkrtchian, Lilit"]
[Black "Semenova, Elena"]
[Result "1/2-1/2"]
[ECO "A18"]
[WhiteElo "2402"]
[BlackElo "2282"]
[Annotator "ChessBase"]
[PlyCount "71"]
[EventDate "2019.11.29"]
[EventType "swiss"]
[EventCountry "MNC"]
[SourceTitle "playchess.com"]
[Source "ChessBase"]
[SourceQuality "1"]
[TimeControl "180+2"]

1. c4 {[%emt 0:00:00]} Nf6 {[%emt 0:00:00]} 2. Nc3 {[%emt 0:00:02]} e6 {[%emt 0:00:00]} 3. e4 {[%emt 0:00:06]} d5 {[%emt 0:00:00]} 4. e5 {[%emt 0:00:08]} d4 {[%emt 0:00:02]} 5. exf6 {[%emt 0:00:03]} dxc3 {[%emt 0:00:01]} 6. bxc3 {[%emt 0:00:12]} Qxf6 {[%emt 0:00:04]} 7. Nf3 {[%emt 0:00:03]} b6 {[%emt 0:00:01]} 8. d4 {[%emt 0:00:11]} h6 {[%emt 0:00:05]} 9. Be2 {[%emt 0:00:05]} Bb7 {[%emt 0:00:02]} 10. O-O {[%emt 0:00:04]} Bd6 {[%emt 0:00:11]} 11. Rb1 {[%emt 0:00:11]} Be4 {[%emt 0:00:17]} 12. Bd3 {[%emt 0:00:11]} Bxd3 {[%emt 0:00:12]} 13. Qxd3 {[%emt 0:00:01]} O-O {[%emt 0:00:02]} 14. Qe4 {[%emt 0:00:52]} Nd7 {[%emt 0:00:01]} 15. Be3 {[%emt 0:00:05]} Rad8 {[%emt 0:00:22]} 16. h3 {[%emt 0:00:08]} Rfe8 {[%emt 0:00:02]} 17. Rfe1 {[%emt 0:00:06]} Qf5 {[%emt 0:00:20]} 18. Qxf5 exf5 {[%emt 0:00:01]} 19. Bd2 {[%emt 0:00:15]} Re4 {[%emt 0:00:08]} 20. Kf1 {[%emt 0:00:04]} Rde8 {[%emt 0:00:02]} 21. a4 {[%emt 0:00:09]} Nb8 {[%emt 0:00:31]} 22. Rb5 {[%emt 0:00:03]} g6 {[%emt 0:00:19]} 23. Bxh6 {[%emt 0:00:05]} Nc6 {[%emt 0:00:05]} 24. Rxe4 {[%emt 0:00:21]} fxe4 {[%emt 0:00:05]} 25. Nd2 {[%emt 0:00:01]} a6 {[%emt 0:00:11]} 26. Rb1 {[%emt 0:00:03]} f5 {[%emt 0:00:08]} 27. g3 {[%emt 0:00:08]} Kf7 {[%emt 0:00:04]} 28. h4 {[%emt 0:00:01]} Na5 {[%emt 0:00:10]} 29. Be3 {[%emt 0:00:03]} Kf6 {[%emt 0:00:06]} 30. Ke2 {[%emt 0:00:09]} Rf8 {[%emt 0:00:10]} 31. Rh1 {[%emt 0:00:02]} Rh8 {[%emt 0:00:01]} 32. Bg5+ {[%emt 0:00:01]} Ke6 {[%emt 0:00:02]} 33. Be3 {[%emt 0:00:03]} Kf6 {[%emt 0:00:02]} 34. Bg5+ {[%emt 0:00:02]} Ke6 {[%emt 0:00:01]} 35. Be3 {[%emt 0:00:03]} Kf6 {[%emt 0:00:01]} 36. Bg5+ {[%emt 0:00:11] Ke5} 1/2-1/2

[Event "EWIBCC 2019"]
[Site "Monte-Carlo"]
[Date "2019.11.29"]
[Round "2.20"]
[White "Chigaeva, Anastasia"]
[Black "Worek, Joanna"]
[Result "0-1"]
[ECO "A57"]
[WhiteElo "2156"]
[BlackElo "2316"]
[Annotator "NA"]
[PlyCount "71"]
[EventDate "2019.11.29"]
[EventType "swiss"]
[EventCountry "MNC"]
[SourceTitle "playchess.com"]
[Source "ChessBase"]
[SourceQuality "1"]
[TimeControl "180+2"]

1. d4 {[%emt 0:00:00]} Nf6 {[%emt 0:00:00]} 2. c4 {[%emt 0:00:03]} c5 {[%emt 0:00:01]} 3. d5 {[%emt 0:00:01]} b5 {[%emt 0:00:01]} 4. Qc2 {[%emt 0:00:04]} e6 {[%emt 0:00:22]} 5. e4 {[%emt 0:00:17]} exd5 {[%emt 0:00:07]} 6. cxd5 {[%emt 0:00:36]} Qb6 {[%emt 0:00:36]} 7. Nf3 {[%emt 0:00:39]} d6 {[%emt 0:00:09]} 8. Be2 {[%emt 0:00:10]} Be7 {[%emt 0:00:02]} 9. O-O {[%emt 0:00:10]} O-O {[%emt 0:00:02]} 10. a4 {[%emt 0:00:04]} b4 {[%emt 0:00:09]} 11. Nbd2 {[%emt 0:00:17]} Ba6 {[%emt 0:00:04]} 12. Bc4 {[%emt 0:00:22]} Re8 {[%emt 0:00:09]} 13. b3 {[%emt 0:00:08]} Bf8 {[%emt 0:00:04]} 14. Bb2 {[%emt 0:00:09]} Nbd7 {[%emt 0:00:01]} 15. Rfe1 {[%emt 0:00:05]} Ng4 {[%emt 0:00:16]} 16. h3 {[%emt 0:00:11]} Nge5 {[%emt 0:00:12]} 17. Nxe5 {[%emt 0:00:05]} Nxe5 {[%emt 0:00:01]} 18. f4 {[%emt 0:00:07]} Ng6 {[%emt 0:00:12]} 19. Rf1 {[%emt 0:00:03]} Bxc4 {[%emt 0:00:06]} 20. Nxc4 {[%emt 0:00:01]} Qd8 {[%emt 0:00:01]} 21. Rae1 {[%emt 0:00:03]} Qh4 {[%emt 0:00:02]} 22. Qf2 {[%emt 0:00:03]} Qxf2+ {[%emt 0:00:01]} 23. Rxf2 {[%emt 0:00:02]} f6 {[%emt 0:00:06]} 24. g3 {[%emt 0:00:02]} Nh8 {[%emt 0:00:01]} 25. e5 {[%emt 0:00:03]} fxe5 {[%emt 0:00:02]} 26. fxe5 {[%emt 0:00:01]} dxe5 {[%emt 0:00:02]} 27. Rxe5 {[%emt 0:00:02]} Rxe5 {[%emt 0:00:00]} 28. Nxe5 {[%emt 0:00:02]} Rd8 {[%emt 0:00:04]} 29. Rd2 {[%emt 0:00:02]} Bd6 {[%emt 0:00:03]} 30. Nc6 {[%emt 0:00:02]} Re8 {[%emt 0:00:01]} 31. Kf2 {[%emt 0:00:03]} a6 {[%emt 0:00:02]} 32. Kg2 {[%emt 0:00:04]} Nf7 {[%emt 0:00:01]} 33. Kf2 {[%emt 0:00:01]} Ng5 {[%emt 0:00:01]} 34. Kg2 {[%emt 0:00:02]} Re3 {[%emt 0:00:01]} 35. h4 {[%emt 0:00:03]} Ne4 {[%emt 0:00:01]} 36. Rd1 {[%emt 0:00:05]} 0-1

[Event "EWIBCC 2019"]
[Site "Monte-Carlo"]
[Date "2019.11.29"]
[Round "3.2"]
[White "Babiy, Olga"]
[Black "Sebag, Marie"]
[Result "0-1"]
[ECO "B31"]
[WhiteElo "2249"]
[BlackElo "2443"]
[Annotator "NA"]
[PlyCount "110"]
[EventDate "2019.11.29"]
[EventType "swiss"]
[EventCountry "MNC"]
[SourceTitle "playchess.com"]
[Source "ChessBase"]
[SourceQuality "1"]
[TimeControl "180+2"]

1. e4 {[%emt 0:00:00]} c5 {[%emt 0:00:00]} 2. Be2 {[%emt 0:00:00]} Nf6 {[%emt 0:00:10]} 3. d3 {[%emt 0:00:01]} Nc6 {[%emt 0:00:03]} 4. f4 {[%emt 0:00:05]} d6 {[%emt 0:00:06]} 5. Nf3 {[%emt 0:00:01]} g6 {[%emt 0:00:01]} 6. O-O {[%emt 0:00:03]} Bg7 {[%emt 0:00:01]} 7. Qe1 {[%emt 0:00:13]} O-O {[%emt 0:00:03]} 8. Qh4 {[%emt 0:00:06]} e6 {[%emt 0:00:53]} 9. c3 {[%emt 0:00:14]} Rb8 {[%emt 0:00:16]} 10. g4 {[%emt 0:00:29]} Nd7 {[%emt 0:00:14]} 11. g5 {[%emt 0:00:06]} f5 {[%emt 0:00:07]} 12. gxf6 {[%emt 0:00:15]} Nxf6 {[%emt 0:00:06]} 13. Ng5 {[%emt 0:00:11]} h6 {[%emt 0:00:06]} 14. Nf3 {[%emt 0:00:21]} Nh5 {[%emt 0:00:02]} 15. Qg4 {[%emt 0:00:25]} Nxf4 {[%emt 0:00:12]} 16. Bxf4 {[%emt 0:00:07]} e5 {[%emt 0:00:00]} 17. Qxg6 {[%emt 0:00:08]} Rxf4 {[%emt 0:00:01]} 18. Nfd2 {[%emt 0:00:21]} Qg5+ {[%emt 0:00:30]} 19. Qxg5 {[%emt 0:00:01]} hxg5 {[%emt 0:00:00]} 20. Nc4 {[%emt 0:00:01]} Bf8 {[%emt 0:00:01]} 21. a4 {[%emt 0:00:07]} Bh3 {[%emt 0:00:03]} 22. Rxf4 {[%emt 0:00:20]} gxf4 {[%emt 0:00:01]} 23. Nbd2 {[%emt 0:00:01]} Be7 {[%emt 0:00:02]} 24. Nf3 {[%emt 0:00:02]} Kf7 {[%emt 0:00:01]} 25. Kf2 {[%emt 0:00:00]} Rh8 {[%emt 0:00:08]} 26. Rg1 {[%emt 0:00:02]} Be6 {[%emt 0:00:02]} 27. Ncd2 {[%emt 0:00:03]} a6 {[%emt 0:00:06]} 28. Bd1 {[%emt 0:00:02]} Na5 {[%emt 0:00:11]} 29. b4 {[%emt 0:00:01]} cxb4 30. cxb4 {[%emt 0:00:01]} Nc6 {[%emt 0:00:04]} 31. b5 {[%emt 0:00:02]} axb5 {[%emt 0:00:09]} 32. axb5 {[%emt 0:00:01]} Na5 {[%emt 0:00:01]} 33. Rg2 {[%emt 0:00:03]} Bd8 {[%emt 0:00:01]} 34. Rg1 {[%emt 0:00:06]} Bb6+ {[%emt 0:00:00]} 35. d4 {[%emt 0:00:01]} exd4 {[%emt 0:00:01]} 36. Ng5+ {[%emt 0:00:03]} Ke7 {[%emt 0:00:02]} 37. Nxe6 {[%emt 0:00:01]} Kxe6 {[%emt 0:00:01]} 38. Rg6+ {[%emt 0:00:02]} Ke7 {[%emt 0:00:02]} 39. Kg2 {[%emt 0:00:04]} d3 {[%emt 0:00:04]} 40. Bg4 {[%emt 0:00:02]} Be3 {[%emt 0:00:04]} 41. Nf1 {[%emt 0:00:04]} Nc4 {[%emt 0:00:04]} 42. Re6+ {[%emt 0:00:01]} Kf7 {[%emt 0:00:01]} 43. e5 {[%emt 0:00:04]} Rg8 {[%emt 0:00:03]} 44. Kf3 {[%emt 0:00:04]} Rxg4 {[%emt 0:00:03]} 45. Rf6+ {[%emt 0:00:00]} Ke7 {[%emt 0:00:03]} 46. Kxg4 {[%emt 0:00:02]} Nxe5+ {[%emt 0:00:02]} 47. Kf5 {[%emt 0:00:00]} d2 {[%emt 0:00:01]} 48. Re6+ {[%emt 0:00:04]} Kd7 {[%emt 0:00:01]} 49. Nxd2 {[%emt 0:00:02]} Bxd2 {[%emt 0:00:01]} 50. h4 {[%emt 0:00:02]} f3 {[%emt 0:00:01]} 51. Rf6 {[%emt 0:00:02]} f2 {[%emt 0:00:05]} 52. Ke4 {[%emt 0:00:01]} Ng4 {[%emt 0:00:03]} 53. Rf5 {[%emt 0:00:02]} Ke6 {[%emt 0:00:08]} 54. h5 {[%emt 0:00:02]} d5+ {[%emt 0:00:01]} 55. Kd3 {[%emt 0:00:01]} Kxf5 {[%emt 0:00:01]} 0-1

[Event "EWIBCC 2019"]
[Site "Monte-Carlo"]
[Date "2019.11.29"]
[Round "3.4"]
[White "Gaponenko, Inna"]
[Black "Socko, Monika"]
[Result "1-0"]
[ECO "B14"]
[WhiteElo "2427"]
[BlackElo "2417"]
[Annotator "NA"]
[PlyCount "67"]
[EventDate "2019.11.29"]
[EventType "swiss"]
[EventCountry "MNC"]
[SourceTitle "playchess.com"]
[Source "ChessBase"]
[SourceQuality "1"]
[TimeControl "180+2"]

1. e4 {[%emt 0:00:00]} c6 {[%emt 0:00:00]} 2. d4 {[%emt 0:00:02]} d5 {[%emt 0:00:00]} 3. exd5 {[%emt 0:00:01]} cxd5 {[%emt 0:00:01]} 4. c4 {[%emt 0:00:01]} Nf6 {[%emt 0:00:02]} 5. Nc3 {[%emt 0:00:00]} e6 {[%emt 0:00:01]} 6. Nf3 {[%emt 0:00:02]} Bb4 {[%emt 0:00:03]} 7. cxd5 {[%emt 0:00:01]} exd5 {[%emt 0:00:10]} 8. Bb5+ {[%emt 0:00:07]} Bd7 {[%emt 0:00:13]} 9. Qe2+ {[%emt 0:00:19]} Qe7 {[%emt 0:00:07]} 10. O-O {[%emt 0:00:08]} Qxe2 {[%emt 0:00:14]} 11. Bxe2 {[%emt 0:00:03]} O-O {[%emt 0:00:07]} 12. Ne5 {[%emt 0:00:05]} Bf5 {[%emt 0:00:05]} 13. Nb5 {[%emt 0:00:29]} Nc6 {[%emt 0:00:12]} 14. Bg5 {[%emt 0:00:04]} Nxe5 {[%emt 0:00:12]} 15. dxe5 {[%emt 0:00:11]} Ne4 {[%emt 0:00:01]} 16. Be3 {[%emt 0:00:05]} a6 {[%emt 0:00:13]} 17. Nc7 {[%emt 0:00:22]} Rad8 {[%emt 0:00:01]} 18. Rfd1 {[%emt 0:00:03]} Be6 {[%emt 0:00:00]} 19. Rac1 {[%emt 0:00:06]} h6 {[%emt 0:00:29]} 20. f3 {[%emt 0:00:17]} Ng5 {[%emt 0:00:04]} 21. h4 {[%emt 0:00:03]} Nh7 {[%emt 0:00:02]} 22. f4 {[%emt 0:00:04]} Ba5 {[%emt 0:00:13]} 23. Bf3 {[%emt 0:00:14]} Bxc7 {[%emt 0:00:24]} 24. Rxc7 {[%emt 0:00:02]} Rc8 {[%emt 0:00:00]} 25. Rxb7 {[%emt 0:00:10]} Rfd8 {[%emt 0:00:04]} 26. Bb6 {[%emt 0:00:06]} Rf8 {[%emt 0:00:04]} 27. Bxd5 {[%emt 0:00:05]} Bg4 {[%emt 0:00:01]} 28. Rd2 {[%emt 0:00:05]} g5 {[%emt 0:00:06]} 29. hxg5 {[%emt 0:00:43]} hxg5 30. Be3 {[%emt 0:00:00]} gxf4 {[%emt 0:00:12]} 31. Bxf4 {[%emt 0:00:00]} Kg7 {[%emt 0:00:05]} 32. Bb3 {[%emt 0:00:00]} Kg6 {[%emt 0:00:19]} 33. Kh2 {[%emt 0:00:00]} Kf5 {[%emt 0:00:12]} 34. Kg3 {[%emt 0:00:00]} 1-0